[Event "11th Arad Open 2018"]
[Site "Arad"]
[Date "2018.08.08"]
[Round "5"]
[White "Dobre, Claudiu-Cristian"]
[Black "Paraschiv, Paul-Alexandru"]
[Result "1-0"]
[ECO "A21"]
[WhiteElo "2356"]
[BlackElo "2074"]
[Annotator "NA"]
[PlyCount "63"]
[EventDate "2018.08.05"]
[EventType "swiss"]
[EventCountry "ROU"]
[SourceTitle "playchess.com"]
[Source "ChessBase"]
[SourceQuality "1"]
[TimeControl "40/5400+30:1800+30"]

1. c4 {[%emt 0:00:00]} e5 {[%emt 0:00:18]} 2. Nc3 {[%emt 0:00:00]} Bb4 {[%emt 0:00:06]} 3. Nd5 {[%emt 0:26:52]} a5 {[%emt 0:01:29]} 4. b3 {[%emt 0:07:56]} c6 {[%emt 0:01:34]} 5. Nxb4 {[%emt 0:00:08]} axb4 {[%emt 0:00:07]} 6. Bb2 {[%emt 0:00:16]} Qe7 {[%emt 0:01:37]} 7. d4 {[%emt 0:10:14]} d6 {[%emt 0:09:14]} 8. dxe5 {[%emt 0:02:51]} dxe5 {[%emt 0:00:21]} 9. e3 {[%emt 0:00:44]} Nf6 {[%emt 0:00:53]} 10. Ne2 {[%emt 0:00:35]} Bg4 {[%emt 0:00:55]} 11. Qc2 {[%emt 0:00:58]} O-O {[%emt 0:02:56]} 12. Ng3 {[%emt 0:00:34]} Nbd7 {[%emt 0:01:03]} 13. h3 {[%emt 0:00:55]} Be6 {[%emt 0:00:16]} 14. Be2 {[%emt 0:01:30]} Ra5 {[%emt 0:01:26]} 15. O-O {[%emt 0:02:37]} Qc5 {[%emt 0:03:17]} 16. Kh2 {[%emt 0:02:53]} Rfa8 {[%emt 0:01:21]} 17. f4 {[%emt 0:00:46]} exf4 {[%emt 0:00:58]} 18. exf4 {[%emt 0:00:09]} h5 {[%emt 0:06:29]} 19. f5 {[%emt 0:31:15]} h4 {[%emt 0:01:39]} 20. fxe6 {[%emt 0:00:05]} hxg3+ {[%emt 0:00:16]} 21. Kh1 {[%emt 0:00:05]} fxe6 {[%emt 0:04:13]} 22. Bxf6 {[%emt 0:06:35]} Nxf6 {[%emt 0:00:08]} 23. Rxf6 {[%emt 0:01:15]} gxf6 {[%emt 0:00:01]} 24. Qg6+ {[%emt 0:00:06]} Kh8 {[%emt 0:01:30]} 25. Qxf6+ {[%emt 0:00:48]} Kg8 {[%emt 0:00:09]} 26. Qg6+ {[%emt 0:02:09]} Kh8 {[%emt 0:00:19]} 27. Qh6+ {[%emt 0:00:26]} Kg8 {[%emt 0:00:08]} 28. Bg4 {[%emt 0:00:34]} Kf7 {[%emt 0:03:20]} 29. Rf1+ {[%emt 0:00:26]} Qf2 {[%emt 0:00:27]} 30. Rxf2+ {[%emt 0:00:26]} gxf2 {[%emt 0:00:15]} 31. Qf4+ {[%emt 0:00:08]} Ke8 32. Qf6 1-0

[Event "11th Arad Open 2018"]
[Site "Arad"]
[Date "2018.08.08"]
[Round "5"]
[White "Toma, Radu-Cristian"]
[Black "Swayams, Mishra"]
[Result "1/2-1/2"]
[ECO "A05"]
[WhiteElo "2354"]
[BlackElo "2467"]
[Annotator "ChessBase"]
[PlyCount "53"]
[EventDate "2018.08.05"]
[EventType "swiss"]
[EventCountry "ROU"]
[SourceTitle "playchess.com"]
[Source "ChessBase"]
[SourceQuality "1"]
[TimeControl "40/5400+30:1800+30"]

1. Nf3 {[%emt 0:08:30]} Nf6 {[%emt 0:00:00]} 2. g3 {[%emt 0:03:25]} c5 {[%emt 0:00:13]} 3. Bg2 {[%emt 0:00:55]} g6 {[%emt 0:00:13]} 4. O-O {[%emt 0:00:58]} Bg7 {[%emt 0:00:02]} 5. b3 {[%emt 0:05:07]} O-O {[%emt 0:01:54]} 6. Bb2 {[%emt 0:00:29]} Nc6 {[%emt 0:00:16]} 7. c4 {[%emt 0:04:50]} d6 {[%emt 0:01:16]} 8. d4 {[%emt 0:05:38]} Bf5 {[%emt 0:07:01]} 9. Nc3 {[%emt 0:09:46]} Rc8 {[%emt 0:07:01]} 10. dxc5 {[%emt 0:12:21]} dxc5 {[%emt 0:00:40]} 11. Nh4 {[%emt 0:02:00]} Be6 {[%emt 0:05:21]} 12. Nd5 {[%emt 0:01:57]} Nxd5 {[%emt 0:00:31]} 13. Bxg7 {[%emt 0:00:42]} Ne3 {[%emt 0:00:02]} 14. fxe3 {[%emt 0:05:53]} Kxg7 {[%emt 0:01:05]} 15. Qc2 {[%emt 0:08:52]} Qc7 {[%emt 0:00:32]} 16. Bxc6 {[%emt 0:01:57]} Qxc6 {[%emt 0:00:20]} 17. Rfd1 {[%emt 0:01:56]} Rfd8 {[%emt 0:01:31]} 18. Rxd8 {[%emt 0:05:11]} Rxd8 {[%emt 0:00:14]} 19. Rd1 {[%emt 0:00:17]} Rxd1+ {[%emt 0:01:02]} 20. Qxd1 {[%emt 0:00:04]} Qe4 {[%emt 0:00:29]} 21. Qd3 {[%emt 0:03:30]} Qe5 {[%emt 0:00:22]} 22. Kf2 {[%emt 0:01:16]} Bh3 {[%emt 0:09:52]} 23. Nf3 {[%emt 0:04:52]} Qa1 {[%emt 0:00:30]} 24. e4 {[%emt 0:00:16]} Qxa2 {[%emt 0:05:58]} 25. Qd5 {[%emt 0:04:26]} Qxb3 {[%emt 0:08:22]} 26. Qe5+ {[%emt 0:00:20]} Kg8 {[%emt 0:00:01]} 27. Qb8+ {[%emt 0:00:10]} 1/2-1/2

[Event "11th Arad Open 2018"]
[Site "Arad"]
[Date "2018.08.08"]
[Round "5"]
[White "Posedaru, Bogdan"]
[Black "Creanga, Robert-Ionut"]
[Result "1-0"]
[ECO "A61"]
[WhiteElo "2326"]
[BlackElo "2069"]
[Annotator "NA"]
[PlyCount "77"]
[EventDate "2018.08.05"]
[EventType "swiss"]
[EventCountry "ROU"]
[SourceTitle "playchess.com"]
[Source "ChessBase"]
[SourceQuality "1"]
[TimeControl "40/5400+30:1800+30"]

1. d4 {[%emt 0:00:00]} Nf6 {[%emt 0:00:00]} 2. c4 {[%emt 0:00:00]} e6 {[%emt 0:00:00]} 3. Nf3 {[%emt 0:00:00]} c5 {[%emt 0:00:00]} 4. d5 {[%emt 0:00:00]} d6 {[%emt 0:00:00]} 5. Nc3 {[%emt 0:00:00]} exd5 {[%emt 0:00:00]} 6. cxd5 {[%emt 0:00:00]} g6 {[%emt 0:00:06]} 7. Bf4 {[%emt 0:00:02]} a6 {[%emt 0:00:05]} 8. a4 {[%emt 0:00:04]} Bg7 {[%emt 0:00:30]} 9. h3 {[%emt 0:00:09]} O-O {[%emt 0:00:49]} 10. e3 {[%emt 0:00:07]} Ne8 {[%emt 0:01:26]} 11. Be2 {[%emt 0:00:04]} Nd7 {[%emt 0:00:54]} 12. O-O {[%emt 0:00:14]} b6 {[%emt 0:02:34]} 13. Nd2 {[%emt 0:06:13]} Qe7 {[%emt 0:05:14]} 14. Nc4 {[%emt 0:03:57]} Rb8 {[%emt 0:02:18]} 15. Qb3 {[%emt 0:00:10]} f5 {[%emt 0:24:19]} 16. Rae1 {[%emt 0:10:34]} Kh8 {[%emt 0:05:18]} 17. Bg3 {[%emt 0:01:10]} Be5 {[%emt 0:08:39]} 18. f4 {[%emt 0:03:06]} Bxc3 {[%emt 0:07:09]} 19. Qxc3+ {[%emt 0:00:04]} Ndf6 {[%emt 0:04:42]} 20. Bf3 {[%emt 0:02:09]} Kg8 {[%emt 0:04:47]} 21. Bh4 {[%emt 0:06:16]} Bd7 {[%emt 0:06:40]} 22. g4 {[%emt 0:10:34]} Qf7 {[%emt 0:06:21]} 23. gxf5 {[%emt 0:04:57]} gxf5 {[%emt 0:00:32]} 24. Qd3 {[%emt 0:00:51]} b5 {[%emt 0:05:24]} 25. axb5 {[%emt 0:00:04]} axb5 {[%emt 0:00:32]} 26. Nd2 {[%emt 0:01:53]} Nc7 {[%emt 0:03:18]} 27. Kh2 {[%emt 0:05:43]} b4 {[%emt 0:04:48]} 28. Nc4 {[%emt 0:03:16]} Nb5 {[%emt 0:02:39]} 29. Ne5 {[%emt 0:05:30]} Qe7 {[%emt 0:01:20]} 30. Rg1+ {[%emt 0:04:37]} Kh8 {[%emt 0:00:09]} 31. Nxd7 {[%emt 0:00:04]} Qxd7 {[%emt 0:00:11]} 32. Rg5 {[%emt 0:00:02]} Ng8 {[%emt 0:02:42]} 33. Reg1 {[%emt 0:00:16]} h6 {[%emt 0:00:36]} 34. Rxg8+ {[%emt 0:06:09]} Rxg8 {[%emt 0:00:10]} 35. Bf6+ {[%emt 0:00:02]} Kh7 {[%emt 0:00:14]} 36. Be4 {[%emt 0:00:04]} Rxg1 {[%emt 0:02:48]} 37. Bxf5+ {[%emt 0:00:04]} Qxf5 {[%emt 0:00:07]} 38. Qxf5+ {[%emt 0:00:01]} Rg6 {[%emt 0:00:02]} 39. h4 {[%emt 0:04:23]} 1-0

[Event "11th Arad Open 2018"]
[Site "Arad"]
[Date "2018.08.08"]
[Round "5"]
[White "Cerovic, Danilo"]
[Black "Miloi, Pavel-Dan"]
[Result "1/2-1/2"]
[ECO "A33"]
[WhiteElo "2320"]
[BlackElo "2047"]
[Annotator "NA"]
[PlyCount "47"]
[EventDate "2018.08.05"]
[EventType "swiss"]
[EventCountry "ROU"]
[SourceTitle "playchess.com"]
[Source "ChessBase"]
[SourceQuality "1"]
[TimeControl "40/5400+30:1800+30"]

1. Nf3 {[%emt 0:00:00]} c5 {[%emt 0:00:00]} 2. c4 {[%emt 0:00:00]} Nc6 {[%emt 0:00:16]} 3. d4 {[%emt 0:00:06]} cxd4 {[%emt 0:00:49]} 4. Nxd4 {[%emt 0:00:02]} Nf6 {[%emt 0:01:19]} 5. Nc3 {[%emt 0:00:15]} e6 {[%emt 0:03:49]} 6. Bf4 {[%emt 0:00:54]} a6 {[%emt 0:01:40]} 7. e3 {[%emt 0:04:03]} Bb4 {[%emt 0:06:06]} 8. Be2 {[%emt 0:10:32]} O-O {[%emt 0:11:44]} 9. O-O {[%emt 0:02:53]} Bxc3 {[%emt 0:01:28]} 10. bxc3 {[%emt 0:03:43]} d5 {[%emt 0:00:09]} 11. Nxc6 {[%emt 0:17:48]} bxc6 {[%emt 0:02:27]} 12. cxd5 {[%emt 0:02:17]} Nxd5 {[%emt 0:07:55]} 13. Bf3 {[%emt 0:05:28]} Nxf4 {[%emt 0:18:47]} 14. Qxd8 {[%emt 0:02:11]} Rxd8 {[%emt 0:00:52]} 15. exf4 {[%emt 0:00:06]} Bd7 {[%emt 0:00:39]} 16. Rfd1 {[%emt 0:05:40]} Rab8 {[%emt 0:08:50]} 17. Kf1 {[%emt 0:07:03]} c5 {[%emt 0:02:17]} 18. Ke2 {[%emt 0:01:02]} Kf8 {[%emt 0:02:31]} 19. Ke3 {[%emt 0:02:04]} Ke7 {[%emt 0:00:35]} 20. Rab1 {[%emt 0:01:55]} Bb5 {[%emt 0:05:17]} 21. Be4 {[%emt 0:03:34]} Rxd1 {[%emt 0:06:06]} 22. Rxd1 {[%emt 0:00:55]} Bc4 {[%emt 0:00:40]} 23. Rb1 {[%emt 0:03:11]} Rxb1 {[%emt 0:00:28]} 24. Bxb1 {[%emt 0:00:07]} 1/2-1/2

[Event "11th Arad Open 2018"]
[Site "Arad"]
[Date "2018.08.08"]
[Round "5"]
[White "Banzea, Alexandru-Bogdan"]
[Black "Ursan, Petru-Sebastian"]
[Result "1/2-1/2"]
[ECO "B35"]
[WhiteElo "2313"]
[BlackElo "2147"]
[Annotator "NA"]
[PlyCount "82"]
[EventDate "2018.08.05"]
[EventType "swiss"]
[EventCountry "ROU"]
[SourceTitle "playchess.com"]
[Source "ChessBase"]
[SourceQuality "1"]
[TimeControl "40/5400+30:1800+30"]

1. e4 {[%emt 0:03:43]} c5 {[%emt 0:00:45]} 2. Nf3 {[%emt 0:00:06]} g6 {[%emt 0:00:15]} 3. d4 {[%emt 0:00:07]} cxd4 {[%emt 0:00:32]} 4. Nxd4 {[%emt 0:00:10]} Nc6 {[%emt 0:00:54]} 5. Nc3 {[%emt 0:00:19]} Bg7 {[%emt 0:00:27]} 6. Be3 {[%emt 0:00:07]} Nf6 {[%emt 0:02:37]} 7. Bc4 {[%emt 0:00:08]} O-O {[%emt 0:00:10]} 8. Bb3 {[%emt 0:00:08]} Re8 {[%emt 0:07:57]} 9. h4 {[%emt 0:01:00]} e6 {[%emt 0:01:26]} 10. h5 {[%emt 0:14:33]} d5 {[%emt 0:03:09]} 11. hxg6 {[%emt 0:01:44]} hxg6 {[%emt 0:00:58]} 12. Nxc6 {[%emt 0:17:05]} bxc6 {[%emt 0:00:08]} 13. e5 {[%emt 0:09:06]} Nd7 {[%emt 0:10:58]} 14. f4 {[%emt 0:01:04]} c5 {[%emt 0:04:07]} 15. Bf2 {[%emt 0:14:06]} Rb8 {[%emt 0:06:43]} 16. Qf3 {[%emt 0:01:45]} d4 {[%emt 0:07:36]} 17. Ne4 {[%emt 0:04:28]} Bb7 {[%emt 0:00:43]} 18. Qe2 {[%emt 0:14:24]} Bxe4 {[%emt 0:09:19]} 19. Qxe4 {[%emt 0:00:05]} Qa5+ {[%emt 0:00:25]} 20. Kf1 {[%emt 0:03:20]} Nb6 {[%emt 0:03:04]} 21. Qd3 {[%emt 0:02:39]} c4 {[%emt 0:11:01]} 22. Bxc4 {[%emt 0:02:51]} Nxc4 {[%emt 0:00:12]} 23. Qxc4 {[%emt 0:00:10]} Rxb2 {[%emt 0:00:18]} 24. Bxd4 {[%emt 0:01:33]} Rb4 {[%emt 0:00:13]} 25. Qd3 {[%emt 0:00:31]} Rd8 {[%emt 0:04:14]} 26. c3 {[%emt 0:00:40]} Rb2 {[%emt 0:00:33]} 27. Qc4 {[%emt 0:01:27]} Bf8 {[%emt 0:09:18]} 28. Rh3 {[%emt 0:01:04]} a6 {[%emt 0:03:15]} 29. Rf3 {[%emt 0:01:32]} Rdb8 {[%emt 0:06:18]} 30. Kg1 {[%emt 0:00:01]} Rc2 {[%emt 0:01:36]} 31. Rf2 {[%emt 0:00:31]} Rbb2 {[%emt 0:00:23]} 32. Rxc2 {[%emt 0:00:10]} Rxc2 {[%emt 0:00:03]} 33. a4 {[%emt 0:01:03]} Qd8 {[%emt 0:02:57]} 34. Qd3 {[%emt 0:01:17]} Rb2 {[%emt 0:00:55]} 35. Rb1 {[%emt 0:01:01]} Ra2 {[%emt 0:01:24]} 36. Qc4 {[%emt 0:00:15]} Rd2 {[%emt 0:00:33]} 37. Be3 {[%emt 0:01:11]} Rc2 {[%emt 0:01:01]} 38. Qd4 {[%emt 0:01:45]} Qa8 {[%emt 0:01:24]} 39. Bf2 {[%emt 0:00:46]} Qc8 {[%emt 0:00:29]} 40. Rd1 {[%emt 0:00:00]} Rxc3 {[%emt 0:00:00]} 41. Qd8 {[%emt 0:17:52]} Qc4 {[%emt 0:22:38]} 1/2-1/2

[Event "11th Arad Open 2018"]
[Site "Arad"]
[Date "2018.08.08"]
[Round "5"]
[White "Vasiesiu, Victor"]
[Black "Magold, Victor"]
[Result "0-1"]
[ECO "B30"]
[WhiteElo "2297"]
[BlackElo "2032"]
[Annotator "NA"]
[PlyCount "140"]
[EventDate "2018.08.05"]
[EventType "swiss"]
[EventCountry "ROU"]
[SourceTitle "playchess.com"]
[Source "ChessBase"]
[SourceQuality "1"]
[TimeControl "40/5400+30:1800+30"]

1. e4 {[%emt 0:00:00]} c5 {[%emt 0:00:00]} 2. Nf3 {[%emt 0:00:00]} Nc6 {[%emt 0:00:00]} 3. Bb5 {[%emt 0:00:03]} Na5 {[%emt 0:00:00]} 4. d4 {[%emt 0:05:43]} a6 {[%emt 0:01:11]} 5. Be2 {[%emt 0:00:27]} cxd4 {[%emt 0:00:33]} 6. Nxd4 {[%emt 0:00:07]} b5 {[%emt 0:03:56]} 7. O-O {[%emt 0:03:03]} Bb7 {[%emt 0:00:53]} 8. Bf3 {[%emt 0:00:20]} Qc7 {[%emt 0:03:57]} 9. Nc3 {[%emt 0:01:12]} e6 {[%emt 0:02:01]} 10. e5 {[%emt 0:12:16]} Bc5 {[%emt 0:05:21]} 11. Bxb7 {[%emt 0:02:41]} Nxb7 {[%emt 0:00:28]} 12. Bf4 {[%emt 0:05:26]} Ne7 {[%emt 0:02:57]} 13. Nf3 {[%emt 0:05:36]} Ng6 {[%emt 0:01:30]} 14. Bg3 {[%emt 0:00:06]} d5 {[%emt 0:06:38]} 15. Nd4 {[%emt 0:05:38]} h5 {[%emt 0:08:23]} 16. h3 {[%emt 0:00:53]} Ne7 {[%emt 0:10:52]} 17. Nce2 {[%emt 0:01:26]} Qb6 {[%emt 0:04:24]} 18. c3 {[%emt 0:04:41]} h4 {[%emt 0:07:47]} 19. Bh2 {[%emt 0:00:49]} Bxd4 {[%emt 0:06:40]} 20. Nxd4 {[%emt 0:01:09]} Nc5 {[%emt 0:02:19]} 21. Qg4 {[%emt 0:00:43]} g6 {[%emt 0:00:56]} 22. Bf4 {[%emt 0:05:41]} Nd3 {[%emt 0:06:56]} 23. Bg5 {[%emt 0:07:06]} Nxe5 {[%emt 0:06:36]} 24. Qf4 {[%emt 0:00:07]} Nd7 {[%emt 0:01:04]} 25. Bf6 {[%emt 0:03:03]} Rh5 {[%emt 0:01:12]} 26. Rae1 {[%emt 0:00:58]} Nxf6 {[%emt 0:03:19]} 27. Qxf6 {[%emt 0:00:13]} Ng8 {[%emt 0:02:20]} 28. Qg7 {[%emt 0:01:00]} Ne7 {[%emt 0:01:07]} 29. Qf6 {[%emt 0:00:07]} Ng8 {[%emt 0:00:42]} 30. Qg7 {[%emt 0:01:37]} Ne7 {[%emt 0:00:18]} 31. Nf3 {[%emt 0:00:23]} Ra7 {[%emt 0:03:20]} 32. Ne5 {[%emt 0:00:43]} Rxe5 {[%emt 0:00:01]} 33. Qxe5 {[%emt 0:00:36]} Nf5 {[%emt 0:02:19]} 34. Rd1 {[%emt 0:03:11]} Rc7 {[%emt 0:05:18]} 35. Rxd5 {[%emt 0:01:50]} Rc6 {[%emt 0:01:27]} 36. Qh8+ {[%emt 0:00:06]} Ke7 {[%emt 0:00:03]} 37. Rd2 {[%emt 0:02:01]} Rd6 {[%emt 0:00:56]} 38. Rfd1 {[%emt 0:00:24]} Rxd2 {[%emt 0:00:02]} 39. Rxd2 {[%emt 0:00:10]} Qc7 {[%emt 0:00:08]} 40. Qa8 {[%emt 0:00:00]} a5 {[%emt 0:00:00]} 41. Qe4 {[%emt 0:17:16]} Kf6 {[%emt 0:17:41]} 42. a4 {[%emt 0:05:00]} bxa4 {[%emt 0:01:12]} 43. Qxa4 {[%emt 0:00:39]} Qe5 {[%emt 0:00:40]} 44. Qd1 {[%emt 0:00:25]} g5 {[%emt 0:01:18]} 45. Re2 {[%emt 0:02:46]} Qf4 {[%emt 0:01:47]} 46. Qc2 {[%emt 0:01:42]} Qd6 {[%emt 0:01:39]} 47. b3 {[%emt 0:01:59]} Qc5 {[%emt 0:00:33]} 48. Qb2 {[%emt 0:02:04]} Kg6 {[%emt 0:00:53]} 49. b4 {[%emt 0:00:30]} axb4 {[%emt 0:00:08]} 50. cxb4 {[%emt 0:00:10]} Qd5 {[%emt 0:01:56]} 51. Qe5 {[%emt 0:03:59]} Qc4 {[%emt 0:05:43]} 52. Qe4 {[%emt 0:02:42]} Qb5 {[%emt 0:00:36]} 53. Rc2 {[%emt 0:02:59]} Kh6 {[%emt 0:01:01]} 54. Qc4 {[%emt 0:03:57]} Qe5 {[%emt 0:00:56]} 55. Qe2 {[%emt 0:05:20]} Qd4 {[%emt 0:01:18]} 56. Qd2 {[%emt 0:01:24]} Qb6 {[%emt 0:00:38]} 57. Rc5 {[%emt 0:01:00]} Kg6 {[%emt 0:00:27]} 58. Kf1 {[%emt 0:00:53]} f6 {[%emt 0:00:48]} 59. Qc3 {[%emt 0:02:38]} e5 {[%emt 0:00:18]} 60. Rc6 {[%emt 0:00:49]} Qb5+ {[%emt 0:00:03]} 61. Kg1 {[%emt 0:01:08]} Nd4 {[%emt 0:00:38]} 62. Rxf6+ {[%emt 0:07:19]} Kxf6 {[%emt 0:00:05]} 63. Qc8 {[%emt 0:00:07]} Qxb4 {[%emt 0:01:47]} 64. Qh8+ {[%emt 0:00:09]} Ke6 {[%emt 0:00:32]} 65. Qg8+ {[%emt 0:00:06]} Kd7 {[%emt 0:00:32]} 66. Qxg5 {[%emt 0:00:34]} Qe1+ {[%emt 0:00:44]} 67. Kh2 {[%emt 0:00:05]} Qxf2 {[%emt 0:00:27]} 68. Qg7+ {[%emt 0:00:06]} Kd6 {[%emt 0:00:10]} 69. Qg6+ {[%emt 0:00:11]} Kc5 {[%emt 0:00:19]} 70. Qg4 {[%emt 0:00:34]} Qf4+ {[%emt 0:00:30]} 0-1

[Event "11th Arad Open 2018"]
[Site "Arad"]
[Date "2018.08.08"]
[Round "5"]
[White "Velickovic, Sasa"]
[Black "Albu, George"]
[Result "1/2-1/2"]
[ECO "B40"]
[WhiteElo "2290"]
[BlackElo "2016"]
[Annotator "NA"]
[PlyCount "76"]
[EventDate "2018.08.05"]
[EventType "swiss"]
[EventCountry "ROU"]
[SourceTitle "playchess.com"]
[Source "ChessBase"]
[SourceQuality "1"]
[TimeControl "40/5400+30:1800+30"]

1. e4 {[%emt 0:00:00]} c5 {[%emt 0:00:00]} 2. Nf3 {[%emt 0:00:00]} e6 {[%emt 0:00:00]} 3. Qe2 {[%emt 0:00:48]} a6 {[%emt 0:00:00]} 4. g3 {[%emt 0:00:26]} Nc6 {[%emt 0:00:00]} 5. Bg2 {[%emt 0:00:09]} b5 {[%emt 0:00:06]} 6. O-O {[%emt 0:00:24]} Bb7 {[%emt 0:00:04]} 7. a4 {[%emt 0:10:11]} b4 {[%emt 0:00:16]} 8. Rd1 {[%emt 0:10:32]} Qc7 {[%emt 0:01:01]} 9. d3 {[%emt 0:21:23]} Rc8 {[%emt 0:04:32]} 10. c3 {[%emt 0:04:00]} Nf6 {[%emt 0:04:28]} 11. Nbd2 {[%emt 0:06:47]} d5 {[%emt 0:04:18]} 12. exd5 {[%emt 0:04:31]} Nxd5 {[%emt 0:00:31]} 13. Ne4 {[%emt 0:00:09]} bxc3 {[%emt 0:14:33]} 14. bxc3 {[%emt 0:01:03]} Na5 {[%emt 0:01:23]} 15. c4 {[%emt 0:00:41]} Nb4 {[%emt 0:00:30]} 16. Bf4 {[%emt 0:11:53]} Qb6 {[%emt 0:02:49]} 17. Rab1 {[%emt 0:08:09]} Rd8 {[%emt 0:14:29]} 18. Ne5 {[%emt 0:03:22]} Be7 {[%emt 0:07:20]} 19. Qg4 {[%emt 0:01:49]} g6 {[%emt 0:03:37]} 20. Bg5 {[%emt 0:03:26]} Bxe4 {[%emt 0:02:29]} 21. Bxe7 {[%emt 0:00:11]} Kxe7 {[%emt 0:01:53]} 22. Qxe4 {[%emt 0:00:53]} Rd4 {[%emt 0:02:33]} 23. Qe3 {[%emt 0:00:08]} f6 {[%emt 0:04:48]} 24. Qh6 {[%emt 0:00:26]} fxe5 {[%emt 0:04:33]} 25. Qg7+ {[%emt 0:00:08]} Kd6 {[%emt 0:00:06]} 26. Qxh8 {[%emt 0:00:06]} Qc7 {[%emt 0:00:07]} 27. Be4 {[%emt 0:01:17]} Nac6 {[%emt 0:03:44]} 28. h4 {[%emt 0:02:00]} Qf7 {[%emt 0:00:28]} 29. Qa8 {[%emt 0:00:37]} Qc7 {[%emt 0:01:46]} 30. Bxc6 {[%emt 0:02:21]} Qxc6 {[%emt 0:00:16]} 31. Qf8+ {[%emt 0:00:12]} Kc7 {[%emt 0:00:34]} 32. Qg7+ {[%emt 0:00:06]} Kd6 {[%emt 0:02:33]} 33. Qxh7 {[%emt 0:01:55]} Qf3 {[%emt 0:00:11]} 34. Rf1 {[%emt 0:04:38]} Rg4 {[%emt 0:03:34]} 35. Kh2 {[%emt 0:00:09]} g5 {[%emt 0:00:03]} 36. Qh8 {[%emt 0:01:55]} Rxh4+ {[%emt 0:01:14]} 37. gxh4 {[%emt 0:00:04]} Qf4+ {[%emt 0:00:07]} 38. Kg2 {[%emt 0:00:23]} Qg4+ {[%emt 0:00:06]} 1/2-1/2

[Event "11th Arad Open 2018"]
[Site "Arad"]
[Date "2018.08.08"]
[Round "5"]
[White "Patrascu, Catalin-Lucian"]
[Black "Olariu, Luca-Stefan"]
[Result "1-0"]
[ECO "B31"]
[WhiteElo "2286"]
[BlackElo "2019"]
[Annotator "NA"]
[PlyCount "75"]
[EventDate "2018.08.05"]
[EventType "swiss"]
[EventCountry "ROU"]
[SourceTitle "playchess.com"]
[Source "ChessBase"]
[SourceQuality "1"]
[TimeControl "40/5400+30:1800+30"]

1. e4 {[%emt 0:00:00]} c5 {[%emt 0:00:00]} 2. Nf3 {[%emt 0:00:07]} Nc6 {[%emt 0:00:00]} 3. Bb5 {[%emt 0:00:02]} g6 {[%emt 0:00:00]} 4. Bxc6 {[%emt 0:00:04]} dxc6 {[%emt 0:00:00]} 5. d3 {[%emt 0:00:06]} Bg7 {[%emt 0:00:04]} 6. h3 {[%emt 0:00:29]} Nf6 {[%emt 0:00:08]} 7. Nc3 {[%emt 0:00:19]} O-O {[%emt 0:00:10]} 8. Bf4 {[%emt 0:02:04]} b5 {[%emt 0:07:41]} 9. Qd2 {[%emt 0:08:59]} a5 {[%emt 0:09:04]} 10. Bh6 {[%emt 0:07:34]} Qc7 {[%emt 0:03:07]} 11. Qg5 {[%emt 0:06:40]} c4 {[%emt 0:06:25]} 12. Bxg7 {[%emt 0:06:15]} Kxg7 {[%emt 0:00:04]} 13. O-O {[%emt 0:07:12]} Be6 {[%emt 0:04:44]} 14. Nd4 {[%emt 0:10:16]} Qd7 {[%emt 0:01:18]} 15. Nce2 {[%emt 0:09:02]} cxd3 {[%emt 0:16:53]} 16. cxd3 {[%emt 0:00:09]} Rfd8 {[%emt 0:01:37]} 17. Qe5 {[%emt 0:07:35]} Rac8 {[%emt 0:05:35]} 18. Rfc1 {[%emt 0:10:11]} Kg8 {[%emt 0:09:29]} 19. Rc5 {[%emt 0:04:41]} Qc7 {[%emt 0:08:51]} 20. Qxc7 {[%emt 0:06:08]} Rxc7 {[%emt 0:00:01]} 21. f3 {[%emt 0:06:42]} Kf8 {[%emt 0:03:35]} 22. a3 {[%emt 0:02:10]} Nh5 {[%emt 0:02:19]} 23. Kf2 {[%emt 0:02:37]} Bd7 {[%emt 0:01:46]} 24. Rac1 {[%emt 0:00:32]} Rb7 {[%emt 0:01:36]} 25. Ke3 {[%emt 0:00:33]} Nf6 {[%emt 0:05:25]} 26. Nxc6 {[%emt 0:00:36]} Bxc6 {[%emt 0:00:20]} 27. Rxc6 {[%emt 0:00:01]} Rdd7 {[%emt 0:01:17]} 28. Rc8+ {[%emt 0:00:33]} Kg7 {[%emt 0:00:06]} 29. R1c5 {[%emt 0:00:28]} a4 {[%emt 0:00:18]} 30. Ra8 {[%emt 0:00:57]} Rd6 {[%emt 0:00:29]} 31. g4 {[%emt 0:00:49]} Nd7 {[%emt 0:00:11]} 32. Rcc8 {[%emt 0:00:29]} Nb6 {[%emt 0:00:33]} 33. Rg8+ {[%emt 0:00:14]} Kf6 {[%emt 0:00:00]} 34. Rad8 {[%emt 0:00:51]} Rc6 {[%emt 0:00:43]} 35. Nd4 {[%emt 0:00:22]} Rc5 {[%emt 0:00:18]} 36. f4 {[%emt 0:00:22]} Nd5+ {[%emt 0:03:58]} 37. Rxd5 {[%emt 0:00:48]} Rxd5 {[%emt 0:00:16]} 38. exd5 {[%emt 0:00:04]} 1-0

[Event "11th Arad Open 2018"]
[Site "Arad"]
[Date "2018.08.08"]
[Round "5"]
[White "Terbe, Julianna"]
[Black "Secheres, Adrian-Simion"]
[Result "0-1"]
[ECO "A45"]
[WhiteElo "2234"]
[BlackElo "2407"]
[Annotator "NA"]
[PlyCount "88"]
[EventDate "2018.08.05"]
[EventType "swiss"]
[EventCountry "ROU"]
[SourceTitle "playchess.com"]
[Source "ChessBase"]
[SourceQuality "1"]
[TimeControl "40/5400+30:1800+30"]

1. d4 {[%emt 0:00:00]} Nf6 {[%emt 0:00:00]} 2. Bf4 {[%emt 0:00:00]} g6 {[%emt 0:00:27]} 3. e3 {[%emt 0:00:00]} Bg7 {[%emt 0:00:14]} 4. Nf3 {[%emt 0:00:00]} O-O {[%emt 0:00:07]} 5. Be2 {[%emt 0:00:00]} d6 {[%emt 0:00:28]} 6. h3 {[%emt 0:00:00]} c5 {[%emt 0:00:17]} 7. O-O {[%emt 0:00:07]} b6 {[%emt 0:06:33]} 8. c3 {[%emt 0:00:11]} Bb7 {[%emt 0:00:32]} 9. Nbd2 {[%emt 0:00:09]} Nbd7 {[%emt 0:00:07]} 10. a4 {[%emt 0:00:05]} a6 {[%emt 0:00:11]} 11. Bh2 {[%emt 0:00:03]} Qc7 {[%emt 0:01:01]} 12. Bd3 {[%emt 0:00:25]} cxd4 {[%emt 0:03:04]} 13. exd4 {[%emt 0:02:36]} Bc6 {[%emt 0:04:09]} 14. Re1 {[%emt 0:01:03]} Rfe8 {[%emt 0:01:02]} 15. Qb3 {[%emt 0:01:23]} Bd5 {[%emt 0:07:27]} 16. c4 {[%emt 0:04:42]} Bb7 {[%emt 0:02:38]} 17. a5 {[%emt 0:00:48]} bxa5 {[%emt 0:08:45]} 18. Qa3 {[%emt 0:03:14]} e5 {[%emt 0:16:21]} 19. Bf1 {[%emt 0:06:33]} Bf8 {[%emt 0:04:14]} 20. d5 {[%emt 0:08:22]} a4 {[%emt 0:05:19]} 21. Qxa4 {[%emt 0:01:19]} a5 {[%emt 0:00:38]} 22. b4 {[%emt 0:10:12]} axb4 {[%emt 0:00:19]} 23. Qxb4 {[%emt 0:00:07]} Nc5 {[%emt 0:01:57]} 24. Nb3 {[%emt 0:02:37]} Nxb3 {[%emt 0:05:22]} 25. Qxb3 {[%emt 0:00:06]} Nd7 {[%emt 0:00:19]} 26. Nd2 {[%emt 0:02:08]} Nc5 {[%emt 0:01:39]} 27. Qe3 {[%emt 0:00:39]} Reb8 {[%emt 0:13:11]} 28. f4 {[%emt 0:04:10]} Bh6 {[%emt 0:05:40]} 29. Qf2 {[%emt 0:02:29]} Rxa1 {[%emt 0:02:10]} 30. Rxa1 {[%emt 0:00:01]} e4 {[%emt 0:01:03]} 31. Ra3 {[%emt 0:05:16]} Re8 {[%emt 0:01:25]} 32. Be2 {[%emt 0:04:45]} Qb6 {[%emt 0:02:15]} 33. Nf1 {[%emt 0:04:38]} Qb2 {[%emt 0:01:35]} 34. Ra5 {[%emt 0:05:23]} Bg7 {[%emt 0:01:31]} 35. Rb5 {[%emt 0:02:07]} Qc3 {[%emt 0:01:38]} 36. Qg3 {[%emt 0:04:14]} Bd4+ {[%emt 0:00:28]} 37. Kh1 {[%emt 0:00:01]} Qc2 {[%emt 0:00:08]} 38. Qe1 {[%emt 0:02:00]} Ra8 {[%emt 0:01:13]} 39. Rb1 {[%emt 0:05:28]} Ra2 {[%emt 0:00:39]} 40. Ng3 {[%emt 0:00:00]} Nd3 {[%emt 0:00:00]} 41. Qf1 {[%emt 0:16:24]} Nf2+ {[%emt 0:17:32]} 42. Kg1 {[%emt 0:00:01]} Nxh3+ {[%emt 0:00:20]} 43. Kh1 {[%emt 0:00:05]} Nf2+ {[%emt 0:00:05]} 44. Kg1 {[%emt 0:00:03]} Nd1+ {[%emt 0:00:28]} 0-1